{"text_format":"1","workbook":"xlsx","n_sheets":5,"sheets":["Меню","Заявка на договор ТП юр лицо","Заявка на договор ТП для ИП","Заявка на договор ТП физлицо","Списки"],"not_rendered":{"charts":0,"images":0,"macros":0,"external_links":0,"defined_names":5,"comments":0,"pivot_tables":0},"unopened":[],"bounds":{"document_bytes":16777216,"sheet_cells":100000,"rows_first":2000,"rows_last":500,"rows_between":2000,"halvings":0,"cell_chars":16384,"cell_head_chars":4096},"cells_cut":0,"cells_raw":0,"read":"whole","date_system":"1900"}

{"sheet":"Меню","index":0,"n_rows":9,"n_cols":2,"rows_kept":9,"cut":false,"hidden":false,"merged":[]}
[]
[null,"Выберите нужный вариант:"]
[null,"Заключение Договора о подключении к системе теплоснабжения ООО \"ТСК Мосэнерго\""]
[null,"Форма заявки на подключение к системе теплоснабжения ООО \"ТСК Мосэнерго\" в случае если Вы:"]
[null,"Юридическое лицо"]
[]
[null,"Индивидуальный предприниматель"]
[]
[null,"Физическое лицо"]

{"sheet":"Заявка на договор ТП юр лицо","index":1,"n_rows":196,"n_cols":12,"rows_kept":196,"cut":false,"hidden":false,"merged":[[4,1,4,10],[5,1,5,10],[7,1,7,10],[10,1,10,10],[46,2,46,10],[11,1,11,10],[13,1,14,1],[13,2,14,2],[13,4,14,5],[13,6,14,6],[13,7,14,9],[40,2,40,4],[40,7,40,10],[36,2,36,10],[38,6,38,10],[26,2,26,10],[27,9,27,10],[38,2,38,4],[28,2,28,10],[30,2,30,3],[34,2,34,4],[34,6,34,10],[16,11,18,11],[18,2,18,10],[19,2,19,4],[19,6,19,10],[19,11,21,11],[20,3,20,4],[20,6,20,7],[21,9,21,10],[25,9,25,10],[22,2,22,7],[22,9,22,10],[24,2,24,7],[24,9,24,10],[16,1,16,10],[27,11,28,11],[106,1,106,2],[106,3,106,4],[87,1,92,10],[103,1,103,2],[103,3,103,4],[104,1,104,2],[104,3,104,4],[75,1,75,10],[32,2,32,4],[32,6,32,10],[44,2,44,5],[44,7,44,10],[48,2,48,10],[99,1,99,10],[30,7,30,8],[79,1,81,10],[96,1,98,10],[54,1,54,10],[94,1,94,10],[101,1,101,10],[19,0,21,0],[193,2,193,3],[193,9,193,10],[112,1,112,2],[112,4,112,10],[27,0,28,0],[130,1,130,2],[134,1,137,10],[141,1,143,10],[147,1,151,10],[192,9,192,10],[109,1,109,3],[109,9,109,10],[105,1,105,2],[105,3,105,4],[50,2,50,10],[155,2,155,9],[173,2,173,9],[174,2,174,9],[107,5,107,10],[159,2,159,9],[164,2,164,9],[185,2,185,9],[186,2,186,9],[187,2,187,9],[188,2,188,9],[189,2,189,9],[180,2,180,9],[181,2,181,9],[182,2,182,9],[183,2,183,9],[184,2,184,9],[177,2,177,9],[179,2,179,9],[162,2,162,9],[57,9,57,10],[55,9,55,10],[114,1,114,10],[132,1,132,10],[145,1,145,10],[178,2,178,9],[169,2,169,9],[170,2,170,9],[171,2,171,9],[172,2,172,9],[121,2,121,10],[2,8,2,10],[9,1,9,10],[190,2,190,9],[168,2,168,9],[103,5,103,10],[104,5,104,10],[105,5,105,10],[106,5,106,10],[116,1,119,10],[126,2,126,3],[126,6,126,8],[107,1,107,2],[107,3,107,4],[108,1,108,2],[108,3,108,4],[108,5,108,10],[153,1,153,10],[157,2,157,9],[165,2,165,9],[166,2,166,9],[167,2,167,9],[163,2,163,9],[175,2,175,9],[176,2,176,9]]}
[]
[null,"НА БЛАНКЕ ОРГАНИЗАЦИИ",null,null,null,null,null,null,null,null,null,"Комментарии для заполнения:"]
[null,null,null,null,null,null,null,null,"Генеральному директору\nООО \"ТСК Мосэнерго\"\nД.В. Горяинову"]
[]
[null,"ЗАЯВКА НА ПОДКЛЮЧЕНИЕ К СИСТЕМЕ ТЕПЛОСНАБЖЕНИЯ ООО \"ТСК МОСЭНЕРГО\""]
[null,"(для юридического лица)"]
[]
[null,"Уважаемый Денис Викторович!"]
[]
[null,"Прошу Вас заключить договор о подключении к системе теплоснабжения ООО \"ТСК Мосэнерго\" объекта капитального строительства: "]
[]
[null,"(наименование объекта)"]
[null,"в связи с:"]
[null,"необходимостью подключения нового объекта",null,null,"увеличением тепловой нагрузки или тепловой мощности подключаемого объекта",null,null,"реконструкцией или модернизацией объекта без увеличения тепловой нагрузки или тепловой мощности",null,null,null,"Необходимо выбрать нужный вариант"]
[]
[]
[null,"1. Сведения о заявителе:"]
[]
[null,"Полное наименование организации"]
[]
[null,"Запись о включении в ЕГРЮЛ (ОГРН)","от",null,null,"№"]
[]
[null,"Ф.И.О. руководителя"]
[]
[null,"Должность руководителя"]
[]
[null,"Местонахождение","Индекс, город, улица, дом, строение, корпус, владение"]
[]
[null,"Почтовый адрес","Индекс, город, улица, дом, строение, корпус, владение"]
[]
[null,"ИНН",null,null,"КПП",null,"ОКПО"]
[]
[null,"р/с",null,null,null,"в"]
[]
[null,"к/с",null,null,null,"БИК"]
[]
[null,"Контактное лицо (Ф.И.О.)"]
[]
[null,"Контактный телефон организации",null,null,null,"Факс"]
[]
[null,"Контактный телефон мобильный",null,null,null,null,"e-mail"]
[]
[null,"2. Местонахождение подключаемого объекта"]
[]
[null,"Город",null,null,null,null,"Район"]
[]
[null,"Область"]
[]
[null,"Населённый пункт"]
[]
[null,"Улица"]
[]
[null,"Дом",null,null,"Владение",null,"Корпус",null,null,"Строение"]
[]
[null,"3. Технические параметры подключаемого объекта"]
[null,"3.1 Таблица тепловых нагрузок по видам потребления ",null,null,null,null,null,null,null,"поле не заполняется",null,"Таблица заполняется одна из двух представленных"]
[null,"(Заполняется одна из двух таблиц)"]
[null,"Для неподключенных строящихся (построенных) объектов:",null,null,null,null,null,null,null,"поле считается автоматически"]
[]
[null,"Наименование","Отопление","Вентиляция","Тепловые завесы","ГВС ср.","ГВС макс.","Кондиционирование","Прочее","Всего (с учетом ГВС ср.)","Всего (с учетом ГВС макс)"]
[null,"Тепловая нагрузка, Гкал / час",0,0,0,0,0,0,0,{"$f":"C61+D61+E61+F61+H61+I61","v":0},{"$f":"C61+D61+E61+G61+H61+I61","v":0}]
[null,"Температурный график"]
[null,"Вид теплоносителя"]
[null,"Схема подключения ",null,null,null,null,null,null,null,null,null,"Необходимо выбрать из выпадающего списка"]
[]
[null,"Для реконструируемых объектов:"]
[]
[null,"Наименование","Отопление","Вентиляция","Тепловые завесы","ГВС ср.","ГВС макс.","Кондиционирование","Прочее","Всего (с учетом ГВС ср.)","Всего (с учетом ГВС макс)"]
[null,"Тепловая нагрузка существующая, Гкал / час",0,0,0,0,0,0,0,{"$f":"C69+D69+E69+F69+H69+I69","v":0},{"$f":"C69+D69+E69+G69+H69+I69","v":0}]
[null,"Тепловая нагрузка после реконструкции, Гкал / час",0,0,0,0,0,0,0,{"$f":"C70+D70+E70+F70+H70+I70","v":0},{"$f":"C70+D70+E70+G70+H70+I70","v":0}]
[null,"Тепловая нагрузка дополнительная, Гкал / час",{"$f":"C70-C69","v":0},{"$f":"D70-D69","v":0},0,0,0,0,0,{"$f":"J70-J69","v":0},{"$f":"K70-K69","v":0},"Считается как разница между Тепловая нагрузка после реконструкции и Тепловая нагрузка существующая"]
[null,"Темп. график"]
[null,"Вид теплоносителя"]
[null,"Схема подключения",null,null,null,null,null,null,null,null,null,"Необходимо выбрать из выпадающего списка"]
[]
[null,"ВАЖНО: Если в рамках заявки на подключение планируется заключение договора о подключении нескольких объектов капитального строительства, то заявка должна содержать в себе таблицы нагрузок по каждому объекту."]
[]
[null,"3.2 Режимы теплопотребления для подключаемого объекта:"]
[]
[null,null,null,null,null,null,null,null,null,null,null,"Необходимо выбрать из выпадающего списка"]
[]
[]
[null,"Если нужного варианта режима в списке нет, укажите собственный вариант"]
[]
[]
[null,"3.3 Расположение узла учета тепловой энергии и теплоносителей и контроля их качества"]
[]
[]
[]
[]
[]
[]
[]
[]
[null,"3.4 Требования к надежности теплоснабжения подключаемого объекта (допустимые перерывы в подаче теплоносителей  по продолжительности, периодам годам и др.)"]
[]
[null,null,null,null,null,null,null,null,null,null,null,"Необходимо выбрать из выпадающего списка"]
[]
[]
[null,"При этом для категорий надежности 2 и 3 предусматривается перерыв в теплоснабжении в летний период времени на срок не более 14 дней, обусловленный проведением гидравлических испытаний  "]
[]
[null,"3.5 Наличие и возможность использования собственных источников тепловой энергии (с указанием их мощностей и режимов работы)"]
[]
[null,"Наименование источника тепловой энергии",null,"Тепловая мощность,\nГкал / час",null,"Режим работы"]
[]
[]
[]
[]
[]
[]
[null,"3.6 Назначение объекта:"]
[]
[null,null,null,null,{"$f":"IF(B113=Списки!B25,Списки!C25,IF(B113=Списки!B26,Списки!C26,IF(B113=Списки!B27,Списки!C27,IF(B113=Списки!B28,Списки!C28,IF(B113=Списки!B29,Списки!C29,IF(B113=Списки!B30,Списки!C30,IF(B113=Списки!B31,Списки!C31,IF(B113=Списки!B32,Списки!C32,IF(B113=Списки!B33,Списки!C33,IF(B113=Списки!B34,Списки!C34,IF(B113=Списки!B35,Списки!C35,IF(B113=Списки!B36,Списки!C36,IF(B113=Списки!B37,Списки!C37,IF(B113=Списки!B38,Списки!C38,IF(B113=Списки!B39,Списки!C39,IF(B113=Списки!B40,Списки!C40,IF(B113=Списки!B41,Списки!C41,IF(B113=Списки!B42,Списки!C42,IF(B113=Списки!B43,Списки!C43,IF(B113=Списки!B44,Списки!C44,IF(B113=Списки!B45,Списки!C45,IF(B113=Списки!B46,Списки!B46,IF(B113=Списки!B47,Списки!C47,IF(B113=Списки!B48,Списки!C48,))))))))))))))))))))))))","v":"-"},null,null,null,null,null,null,"Необходимо выбрать из выпадающего списка"]
[]
[null,"4. Правовые основания пользованием подключаемым объектом или земельным участком, на котором расположен подключаемый объект:"]
[]
[]
[]
[]
[]
[]
[null,"Кдастровый номер:"]
[]
[]
[null,"5. Технические условия (если ранее выдавались)"]
[]
[null,"от","дд.мм.гг",null,null,"№"]
[]
[null,"6. Планируемый срок ввода объекта в эксплуатацию:"]
[]
[null,"мм.гг"]
[]
[null,"7. Информация о границах земельного участка, на котором планируется осуществить строительство / реконструкцию / модернизацию подключаемого объекта"]
[]
[]
[]
[]
[]
[]
[null,"8. Информация о виде разрешенного используемого земельного участка:"]
[]
[]
[]
[]
[]
[null,"9. Информация о предельных параметрах разрешенного строительства / реконструкции / модернизации подключаемого объекта:"]
[]
[]
[]
[]
[]
[]
[]
[null,"10. О готовности проекта договора о подключении к системам теплоснабжения прошу уведомить меня:",null,null,null,null,null,null,null,null,null,"Необходимо выбрать нужный вариант"]
[]
[null,"по телефону:"]
[]
[null,"по электронной почте по адресу:"]
[]
[null,null,"В случае если Заявитель будет недоступен по вышеуказанному контакту, Договор о подключении к системе теплоснабжения ООО \"ТСК Мосэнерго\" будет отправлен почтой по адресу, указанному в Разделе 1 настоящего Запроса"]
[]
[]
[null,null,"Перечень необходимых документов для заключения Договора о подключении к системе теплоснабжения ООО \"ТСК Мосэнерго\":"]
[null,1,"Заверенные копии учредительных документов:"]
[null,"-","устав юридического лица (в том числе все изменения и дополнения к нему);"]
[null,"-","свидетельство о государственной регистрации юридического лица;"]
[null,"-","свидетельство о внесении записи в единый государственный реестр юридических лиц о юридическом лице (далее – ЕГРЮЛ), зарегистрированном до 01.07.2002, в случае создания контрагента до 01.07.2002;"]
[null,"-","свидетельство о постановке юридического лица на учет в налоговом органе;"]
[null,"-","выписка из ЕГРЮЛ. Дата выдачи выписки из ЕГРИП не должна превышать 30 дней на дату представления;"]
[null,"-","документы, подтверждающие полномочия лица, действующего от имени заявителя."]
[null,2,"Документы, подтверждающие полномочия лица, подписавшего запрос:"]
[null,"-","документ о назначении руководителя юридического лица;"]
[null,"-","приказ о вступлении в должность руководителя юридического лица;"]
[null,"-","доверенность представителя контрагента на право подписания запроса (в случае подписания запроса лицом, действующим на основании доверенности)."]
[null,3,"Копии правоустанавливающих документов, подтверждающих право собственности или иное законное право заявителя на подключаемый объект или земельный участок, права на которые не зарегистрированы в Едином государственном реестре прав на недвижимое имущество и сделок с ним (в случае если такие права зарегистрированы в указанном реестре, представляются копии свидетельств о государственной регистрации прав на указанный подключаемый объект или земельный участок)."]
[null,4,"Ситуационный план расположения подключаемого объекта с привязкой к территории населенного пункта или элементам территориального деления в схеме теплоснабжения."]
[null,5,"Топографическая карта земельного участка в масштабе 1:500 (для квартальной застройки 1:2000) в электронном виде в фрмате PDF с указанием всех наземных и подземных коммуникаций и сооружений."]
[null,6,"Технические параметры, подключаемого объекта:"]
[null,"-","Расчетные максимальные часовые и среднечасовые расходы тепловой энергии и соответствующие им расчетные расходы теплоносителя на технологические нужды, отопление, вентиляцию, кондиционирование воздуха и горячее водоснабжение. "]
[null,"-","Вид и параметры теплоносителя (пар, горячая вода, температурный график, схема подключения «зависимая/независимая»)."]
[null,"-","Режимы теплопотребления для подключаемого объекта (непрерывный, одно-, двухсменный и т.д.)."]
[null,"-","Расположение узла учета тепловой энергии и теплоносителей и контроля их качества (адрес и место установки прибора)"]
[null,"-","Требования к надежности теплоснабжения подключаемого объекта (допустимые перерывы в подаче теплоносителя по продолжительности, периодам года и др.)"]
[null,7,"Наличие и возможность использования собственных источников тепловой энергии (с указанием их мощности и режимов работы)"]
[null,8,"Правовые основания пользования заявителем подключаемым объектом и земельным участком, на котором планируется создание подключаемого объект."]
[null,9,"Номер и дата выдачи технических условий (если они выдавались ранее в соответствии с законодательством о градостроительной деятельности)."]
[null,10,"Планируемые сроки ввода в эксплуатацию подключаемого объекта"]
[null,11,"Информация о границах земельного участка, на котором планируется осуществить строительство"]
[null,12,"Информация о виде разрешенного использования земельного участка"]
[null,13,"Информация о предельных параметрах разрешенного строительства (реконструкции, модернизации) подключаемого объекта (информация, указанная в пп. 10-13, содержится в ГПЗУ)."]
[]
[]
[null,"Заявитель",null,null,null,null,null,null,null,"дд.мм.гг"]
[null,null,"ФИО",null,null,null,"Подпись",null,null,"Дата"]
[]
[null,"М.П."]

{"sheet":"Заявка на договор ТП для ИП","index":2,"n_rows":189,"n_cols":12,"rows_kept":189,"cut":false,"hidden":false,"merged":[[1,8,1,10],[8,1,8,10],[10,1,10,10],[12,1,13,1],[12,2,13,2],[12,4,13,5],[12,6,13,6],[12,7,13,9],[15,1,15,10],[3,1,3,10],[4,1,4,10],[6,1,6,10],[9,1,9,10],[15,11,17,11],[17,2,17,10],[18,0,20,0],[18,2,18,4],[18,6,18,10],[18,11,20,11],[19,3,19,4],[19,6,19,7],[20,9,20,10],[26,0,27,0],[26,9,26,10],[26,11,27,11],[27,2,27,10],[29,2,29,3],[29,7,29,8],[21,2,21,7],[21,9,21,10],[23,2,23,7],[23,9,23,10],[24,9,24,10],[25,2,25,10],[39,2,39,4],[39,7,39,10],[43,2,43,5],[43,7,43,10],[45,2,45,10],[31,2,31,4],[31,6,31,10],[33,2,33,4],[33,6,33,10],[35,2,35,10],[37,2,37,4],[37,6,37,10],[47,2,47,10],[86,1,91,10],[93,1,93,10],[95,1,97,10],[98,1,98,10],[102,1,102,2],[102,3,102,4],[102,5,102,10],[49,2,49,10],[53,1,53,10],[54,9,54,10],[56,9,56,10],[74,1,74,10],[78,1,80,10],[100,1,100,10],[105,1,105,2],[105,3,105,4],[105,5,105,10],[106,1,106,2],[106,3,106,4],[106,5,106,10],[103,1,103,2],[103,3,103,4],[103,5,103,10],[104,1,104,2],[104,3,104,4],[104,5,104,10],[113,1,113,10],[115,1,118,10],[125,2,125,3],[125,6,125,8],[129,1,129,2],[131,1,131,10],[107,1,107,2],[107,3,107,4],[107,5,107,10],[108,1,108,3],[108,9,108,10],[111,1,111,2],[111,4,111,10],[120,2,120,10],[164,2,164,9],[165,2,165,9],[166,2,166,9],[156,2,156,9],[158,2,158,9],[161,2,161,9],[162,2,162,9],[163,2,163,9],[133,1,136,10],[140,1,142,10],[144,1,144,10],[146,1,150,10],[152,1,152,10],[154,2,154,9],[171,2,171,9],[172,2,172,9],[173,2,173,9],[174,2,174,9],[175,2,175,9],[176,2,176,9],[167,2,167,9],[168,2,168,9],[169,2,169,9],[170,2,170,9],[183,2,183,9],[185,9,185,10],[186,2,186,3],[186,9,186,10],[177,2,177,9],[178,2,178,9],[179,2,179,9],[180,2,180,9],[181,2,181,9],[182,2,182,9]]}
[]
[null,null,null,null,null,null,null,null,"Генеральному директору\nООО \"ТСК Мосэнерго\"\nД.В. Горяинову",null,null,"Комментарии для заполнения:"]
[]
[null,"ЗАЯВКА НА ПОДКЛЮЧЕНИЕ К СИСТЕМЕ ТЕПЛОСНАБЖЕНИЯ ООО \"ТСК МОСЭНЕРГО\""]
[null,"(для индивидуального предпринимателя)"]
[]
[null,"Уважаемый Денис Викторович!"]
[]
[null,"Прошу Вас заключить договор о подключении к системе теплоснабжения ООО \"ТСК Мосэнерго\" объекта капитального строительства: "]
[]
[null,"(наименование объекта)"]
[null,"в связи с:"]
[null,"необходимостью подключения нового объекта",null,null,"увеличением тепловой нагрузки или тепловой мощности подключаемого объекта",null,null,"реконструкцией или модернизацией объекта без увеличения тепловой нагрузки или тепловой мощности",null,null,null,"Необходимо выбрать нужный вариант"]
[]
[]
[null,"1. Сведения о заявителе:"]
[]
[null,"Полное наименование организации"]
[]
[null,"Запись о включении в ЕГРИП (ОГРНИП)","от",null,null,"№"]
[]
[null,"Ф.И.О. руководителя"]
[]
[null,"Должность руководителя"]
[]
[null,"Местонахождение","Индекс, город, улица, дом, строение, корпус, владение"]
[]
[null,"Почтовый адрес","Индекс, город, улица, дом, строение, корпус, владение"]
[]
[null,"ИНН",null,null,"КПП",null,"ОКПО"]
[]
[null,"р/с",null,null,null,"в"]
[]
[null,"к/с",null,null,null,"БИК"]
[]
[null,"Контактное лицо (Ф.И.О.)"]
[]
[null,"Контактный телефон организации",null,null,null,"Факс"]
[]
[null,"Контактный телефон мобильный",null,null,null,null,"e-mail"]
[]
[null,"2. Местонахождение подключаемого объекта"]
[]
[null,"Город",null,null,null,null,"Район"]
[]
[null,"Область"]
[]
[null,"Населённый пункт"]
[]
[null,"Улица"]
[]
[null,"Дом",null,null,"Владение",null,"Корпус",null,null,"Строение"]
[]
[null,"3. Технические параметры подключаемого объекта"]
[null,"3.1 Таблица тепловых нагрузок по видам потребления ",null,null,null,null,null,null,null,"поле не заполняется",null,"Таблица заполняется одна из двух представленных"]
[null,"(Заполняется одна из двух таблиц)"]
[null,"Для неподключенных строящихся (построенных) объектов:",null,null,null,null,null,null,null,"поле считается автоматически"]
[]
[null,"Наименование","Отопление","Вентиляция","Тепловые завесы","ГВС ср.","ГВС макс.","Кондиционирование","Прочее","Всего (с учетом ГВС ср.)","Всего (с учетом ГВС макс)"]
[null,"Тепловая нагрузка, Гкал / час",0,0,0,0,0,0,0,{"$f":"C60+D60+E60+F60+H60+I60","v":0},{"$f":"C60+D60+E60+G60+H60+I60","v":0}]
[null,"Температурный график"]
[null,"Вид теплоносителя"]
[null,"Схема подключения ",null,null,null,null,null,null,null,null,null,"Необходимо выбрать из выпадающего списка"]
[]
[null,"Для реконструируемых объектов:"]
[]
[null,"Наименование","Отопление","Вентиляция","Тепловые завесы","ГВС ср.","ГВС макс.","Кондиционирование","Прочее","Всего (с учетом ГВС ср.)","Всего (с учетом ГВС макс)"]
[null,"Тепловая нагрузка существующая, Гкал / час",0,0,0,0,0,0,0,{"$f":"C68+D68+E68+F68+H68+I68","v":0},{"$f":"C68+D68+E68+G68+H68+I68","v":0}]
[null,"Тепловая нагрузка после реконструкции, Гкал / час",0,0,0,0,0,0,0,{"$f":"C69+D69+E69+F69+H69+I69","v":0},{"$f":"C69+D69+E69+G69+H69+I69","v":0}]
[null,"Тепловая нагрузка дополнительная, Гкал / час",{"$f":"C69-C68","v":0},{"$f":"D69-D68","v":0},0,0,0,0,0,{"$f":"J69-J68","v":0},{"$f":"K69-K68","v":0},"Считается как разница между Тепловая нагрузка после реконструкции и Тепловая нагрузка существующая"]
[null,"Темп. график"]
[null,"Вид теплоносителя"]
[null,"Схема подключения",null,null,null,null,null,null,null,null,null,"Необходимо выбрать из выпадающего списка"]
[]
[null,"ВАЖНО: Если в рамках заявки на подключение планируется заключение договора о подключении нескольких объектов капитального строительства, то заявка должна содержать в себе таблицы нагрузок по каждому объекту."]
[]
[null,"3.2 Режимы теплопотребления для подключаемого объекта:"]
[]
[null,null,null,null,null,null,null,null,null,null,null,"Необходимо выбрать из выпадающего списка"]
[]
[]
[null,"Если нужного варианта режима в списке нет, укажите собственный вариант"]
[]
[]
[null,"3.3 Расположение узла учета тепловой энергии и теплоносителей и контроля их качества"]
[]
[]
[]
[]
[]
[]
[]
[]
[null,"3.4 Требования к надежности теплоснабжения подключаемого объекта (допустимые перерывы в подаче теплоносителей  по продолжительности, периодам годам и др.)"]
[]
[null,null,null,null,null,null,null,null,null,null,null,"Необходимо выбрать из выпадающего списка"]
[]
[]
[null,"При этом для категорий надежности 2 и 3 предусматривается перерыв в теплоснабжении в летний период времени на срок не более 14 дней, обусловленный проведением гидравлических испытаний  "]
[]
[null,"3.5 Наличие и возможность использования собственных источников тепловой энергии (с указанием их мощностей и режимов работы)"]
[]
[null,"Наименование источника тепловой энергии",null,"Тепловая мощность,\nГкал / час",null,"Режим работы"]
[]
[]
[]
[]
[]
[]
[null,"3.6 Назначение объекта:"]
[]
[null,null,null,null,{"$f":"IF(B112=Списки!B25,Списки!C25,IF(B112=Списки!B26,Списки!C26,IF(B112=Списки!B27,Списки!C27,IF(B112=Списки!B28,Списки!C28,IF(B112=Списки!B29,Списки!C29,IF(B112=Списки!B30,Списки!C30,IF(B112=Списки!B31,Списки!C31,IF(B112=Списки!B32,Списки!C32,IF(B112=Списки!B33,Списки!C33,IF(B112=Списки!B34,Списки!C34,IF(B112=Списки!B35,Списки!C35,IF(B112=Списки!B36,Списки!C36,IF(B112=Списки!B37,Списки!C37,IF(B112=Списки!B38,Списки!C38,IF(B112=Списки!B39,Списки!C39,IF(B112=Списки!B40,Списки!C40,IF(B112=Списки!B41,Списки!C41,IF(B112=Списки!B42,Списки!C42,IF(B112=Списки!B43,Списки!C43,IF(B112=Списки!B44,Списки!C44,IF(B112=Списки!B45,Списки!C45,IF(B112=Списки!B46,Списки!B46,IF(B112=Списки!B47,Списки!C47,IF(B112=Списки!B48,Списки!C48,))))))))))))))))))))))))","v":"-"},null,null,null,null,null,null,"Необходимо выбрать из выпадающего списка"]
[]
[null,"4. Правовые основания пользованием подключаемым объектом или земельным участком, на котором расположен подключаемый объект:"]
[]
[]
[]
[]
[]
[]
[null,"Кдастровый номер:"]
[]
[]
[null,"5. Технические условия (если ранее выдавались)"]
[]
[null,"от","дд.мм.гг",null,null,"№"]
[]
[null,"6. Планируемый срок ввода объекта в эксплуатацию:"]
[]
[null,"мм.гг"]
[]
[null,"7. Информация о границах земельного участка, на котором планируется осуществить строительство / реконструкцию / модернизацию подключаемого объекта"]
[]
[]
[]
[]
[]
[]
[null,"8. Информация о виде разрешенного используемого земельного участка:"]
[]
[]
[]
[]
[]
[null,"9. Информация о предельных параметрах разрешенного строительства / реконструкции / модернизации подключаемого объекта:"]
[]
[]
[]
[]
[]
[]
[]
[null,"10. О готовности проекта договора о подключении к системам теплоснабжения прошу уведомить меня:",null,null,null,null,null,null,null,null,null,"Необходимо выбрать нужный вариант"]
[]
[null,"по телефону:"]
[]
[null,"по электронной почте по адресу:"]
[]
[null,null,"В случае если Заявитель будет недоступен по вышеуказанному контакту, Договор о подключении к системе теплоснабжения ООО \"ТСК Мосэнерго\" будет отправлен почтой по адресу, указанному в Разделе 1 настоящего Запроса"]
[]
[]
[null,null,"Перечень необходимых документов для заключения Договора о подключении к системе теплоснабжения ООО \"ТСК Мосэнерго\":"]
[null,1,"Заверенные копии учредительных документов:"]
[null,"-","свидетельство о государственной регистрации физического лица в качестве индивидуального предпринимателя;"]
[null,"-","свидетельство о постановке на учет в налоговом органе индивидуального предпринимателя;"]
[null,"-","выписка из единого государственного реестра индивидуальных предпринимателей (далее – ЕГРИП). Дата выдачи выписки из ЕГРИП не должна превышать 30 дней на дату представления."]
[null,2,"Доверенность представителя контрагента на право подписания запроса (в случае подписания запроса лицом, действующим на основании доверенности)."]
[null,3,"Копии правоустанавливающих документов, подтверждающих право собственности или иное законное право заявителя на подключаемый объект или земельный участок, права на которые не зарегистрированы в Едином государственном реестре прав на недвижимое имущество и сделок с ним (в случае если такие права зарегистрированы в указанном реестре, представляются копии свидетельств о государственной регистрации прав на указанный подключаемый объект или земельный участок)."]
[null,4,"Ситуационный план расположения подключаемого объекта с привязкой к территории населенного пункта или элементам территориального деления в схеме теплоснабжения."]
[null,5,"Топографическая карта земельного участка в масштабе 1:500 (для квартальной застройки 1:2000) в электронном виде в фрмате PDF с указанием всех наземных и подземных коммуникаций и сооружений."]
[null,6,"Технические параметры, подключаемого объекта:"]
[null,"-","Расчетные максимальные часовые и среднечасовые расходы тепловой энергии и соответствующие им расчетные расходы теплоносителя на технологические нужды, отопление, вентиляцию, кондиционирование воздуха и горячее водоснабжение. "]
[null,"-","Вид и параметры теплоносителя (пар, горячая вода, температурный график, схема подключения «зависимая/независимая»)."]
[null,"-","Режимы теплопотребления для подключаемого объекта (непрерывный, одно-, двухсменный и т.д.)."]
[null,"-","Расположение узла учета тепловой энергии и теплоносителей и контроля их качества (адрес и место установки прибора)"]
[null,"-","Требования к надежности теплоснабжения подключаемого объекта (допустимые перерывы в подаче теплоносителя по продолжительности, периодам года и др.)"]
[null,7,"Наличие и возможность использования собственных источников тепловой энергии (с указанием их мощности и режимов работы)"]
[null,8,"Правовые основания пользования заявителем подключаемым объектом и земельным участком, на котором планируется создание подключаемого объект."]
[null,9,"Номер и дата выдачи технических условий (если они выдавались ранее в соответствии с законодательством о градостроительной деятельности)."]
[null,10,"Планируемые сроки ввода в эксплуатацию подключаемого объекта"]
[null,11,"Информация о границах земельного участка, на котором планируется осуществить строительство"]
[null,12,"Информация о виде разрешенного использования земельного участка"]
[null,13,"Информация о предельных параметрах разрешенного строительства (реконструкции, модернизации) подключаемого объекта (информация, указанная в пп. 10-13, содержится в ГПЗУ)."]
[]
[]
[null,"Заявитель",null,null,null,null,null,null,null,"дд.мм.гг"]
[null,null,"ФИО",null,null,null,"Подпись",null,null,"Дата"]
[]
[null,"М.П."]

{"sheet":"Заявка на договор ТП физлицо","index":3,"n_rows":185,"n_cols":12,"rows_kept":185,"cut":false,"hidden":false,"merged":[[10,1,10,10],[12,1,13,1],[12,2,13,2],[12,4,13,5],[12,6,13,6],[12,7,13,9],[42,2,42,5],[42,7,42,10],[1,8,1,10],[3,1,3,10],[4,1,4,10],[6,1,6,10],[8,1,8,10],[9,1,9,10],[44,2,44,10],[15,1,15,10],[15,11,17,11],[17,2,17,10],[18,0,38,0],[18,2,18,4],[18,6,18,10],[18,11,38,11],[32,2,32,4],[32,6,32,10],[36,2,36,4],[38,2,38,4],[38,7,38,10],[23,2,23,10],[24,9,24,10],[25,2,25,10],[28,2,28,3],[28,7,28,8],[30,2,30,4],[30,6,30,10],[46,2,46,10],[85,1,90,10],[92,1,92,10],[94,1,96,10],[97,1,97,10],[101,1,101,2],[101,3,101,4],[101,5,101,10],[48,2,48,10],[52,1,52,10],[53,9,53,10],[55,9,55,10],[73,1,73,10],[77,1,79,10],[99,1,99,10],[104,1,104,2],[104,3,104,4],[104,5,104,10],[105,1,105,2],[105,3,105,4],[105,5,105,10],[102,1,102,2],[102,3,102,4],[102,5,102,10],[103,1,103,2],[103,3,103,4],[103,5,103,10],[112,1,112,10],[114,1,117,10],[124,2,124,3],[124,6,124,8],[128,1,128,2],[130,1,130,10],[106,1,106,2],[106,3,106,4],[106,5,106,10],[107,1,107,3],[107,9,107,10],[110,1,110,2],[110,4,110,10],[119,2,119,10],[164,2,164,9],[165,2,165,9],[166,2,166,9],[155,2,155,9],[157,2,157,9],[160,2,160,9],[161,2,161,9],[132,1,135,10],[139,1,141,10],[143,1,143,10],[145,1,149,10],[151,1,151,10],[153,2,153,9],[179,2,179,9],[181,9,181,10],[182,2,182,3],[182,9,182,10],[19,2,19,7],[20,9,20,10],[21,2,21,3],[21,5,21,6],[21,9,21,10],[22,9,22,10],[173,2,173,9],[174,2,174,9],[175,2,175,9],[176,2,176,9],[177,2,177,9],[178,2,178,9],[167,2,167,9],[168,2,168,9],[169,2,169,9],[170,2,170,9],[171,2,171,9],[172,2,172,9],[162,2,162,9],[163,2,163,9]]}
[]
[null,null,null,null,null,null,null,null,"Генеральному директору\nООО \"ТСК Мосэнерго\"\nД.В. Горяинову",null,null,"Комментарии для заполнения:"]
[]
[null,"ЗАЯВКА НА ПОДКЛЮЧЕНИЕ К СИСТЕМЕ ТЕПЛОСНАБЖЕНИЯ ООО \"ТСК МОСЭНЕРГО\""]
[null,"(для физического лица)"]
[]
[null,"Уважаемый Денис Викторович!"]
[]
[null,"Прошу Вас заключить договор о подключении к системе теплоснабжения ООО \"ТСК Мосэнерго\" объекта капитального строительства: "]
[]
[null,"(наименование объекта)"]
[null,"в связи с:"]
[null,"необходимостью подключения нового объекта",null,null,"увеличением тепловой нагрузки или тепловой мощности подключаемого объекта",null,null,"реконструкцией или модернизацией объекта без увеличения тепловой нагрузки или тепловой мощности",null,null,null,"Необходимо выбрать нужный вариант"]
[]
[]
[null,"1. Сведения о заявителе:"]
[]
[null,"ФИО"]
[]
[null,"Наименование документа, \nудостоверяюшего личность"]
[]
[null,"Серия",null,null,"№",null,null,null,"Дата выдачи","дд.мм.гг"]
[]
[null,"Местонахождение","Индекс, город, улица, дом, строение, корпус, владение"]
[]
[null,"Почтовый адрес","Индекс, город, улица, дом, строение, корпус, владение"]
[]
[]
[null,"ИНН",null,null,"КПП",null,"ОКПО"]
[]
[null,"р/с",null,null,null,"в"]
[]
[null,"к/с",null,null,null,"БИК"]
[]
[null,"Контактное лицо (Ф.И.О.)"]
[]
[null,"Контактный телефон организации",null,null,null,"Факс"]
[]
[null,"Контактный телефон мобильный",null,null,null,null,"e-mail"]
[]
[null,"2. Местонахождение подключаемого объекта"]
[]
[null,"Город",null,null,null,null,"Район"]
[]
[null,"Область"]
[]
[null,"Населённый пункт"]
[]
[null,"Улица"]
[]
[null,"Дом",null,null,"Владение",null,"Корпус",null,null,"Строение"]
[]
[null,"3. Технические параметры подключаемого объекта"]
[null,"3.1 Таблица тепловых нагрузок по видам потребления ",null,null,null,null,null,null,null,"поле не заполняется",null,"Таблица заполняется одна из двух представленных"]
[null,"(Заполняется одна из двух таблиц)"]
[null,"Для неподключенных строящихся (построенных) объектов:",null,null,null,null,null,null,null,"поле считается автоматически"]
[]
[null,"Наименование","Отопление","Вентиляция","Тепловые завесы","ГВС ср.","ГВС макс.","Кондиционирование","Прочее","Всего (с учетом ГВС ср.)","Всего (с учетом ГВС макс)"]
[null,"Тепловая нагрузка, Гкал / час",0,0,0,0,0,0,0,{"$f":"C59+D59+E59+F59+H59+I59","v":0},{"$f":"C59+D59+E59+G59+H59+I59","v":0}]
[null,"Температурный график"]
[null,"Вид теплоносителя"]
[null,"Схема подключения ",null,null,null,null,null,null,null,null,null,"Необходимо выбрать из выпадающего списка"]
[]
[null,"Для реконструируемых объектов:"]
[]
[null,"Наименование","Отопление","Вентиляция","Тепловые завесы","ГВС ср.","ГВС макс.","Кондиционирование","Прочее","Всего (с учетом ГВС ср.)","Всего (с учетом ГВС макс)"]
[null,"Тепловая нагрузка существующая, Гкал / час",0,0,0,0,0,0,0,{"$f":"C67+D67+E67+F67+H67+I67","v":0},{"$f":"C67+D67+E67+G67+H67+I67","v":0}]
[null,"Тепловая нагрузка после реконструкции, Гкал / час",0,0,0,0,0,0,0,{"$f":"C68+D68+E68+F68+H68+I68","v":0},{"$f":"C68+D68+E68+G68+H68+I68","v":0}]
[null,"Тепловая нагрузка дополнительная, Гкал / час",{"$f":"C68-C67","v":0},{"$f":"D68-D67","v":0},0,0,0,0,0,{"$f":"J68-J67","v":0},{"$f":"K68-K67","v":0},"Считается как разница между Тепловая нагрузка после реконструкции и Тепловая нагрузка существующая"]
[null,"Темп. график"]
[null,"Вид теплоносителя"]
[null,"Схема подключения",null,null,null,null,null,null,null,null,null,"Необходимо выбрать из выпадающего списка"]
[]
[null,"ВАЖНО: Если в рамках заявки на подключение планируется заключение договора о подключении нескольких объектов капитального строительства, то заявка должна содержать в себе таблицы нагрузок по каждому объекту."]
[]
[null,"3.2 Режимы теплопотребления для подключаемого объекта:"]
[]
[null,null,null,null,null,null,null,null,null,null,null,"Необходимо выбрать из выпадающего списка"]
[]
[]
[null,"Если нужного варианта режима в списке нет, укажите собственный вариант"]
[]
[]
[null,"3.3 Расположение узла учета тепловой энергии и теплоносителей и контроля их качества"]
[]
[]
[]
[]
[]
[]
[]
[]
[null,"3.4 Требования к надежности теплоснабжения подключаемого объекта (допустимые перерывы в подаче теплоносителей  по продолжительности, периодам годам и др.)"]
[]
[null,null,null,null,null,null,null,null,null,null,null,"Необходимо выбрать из выпадающего списка"]
[]
[]
[null,"При этом для категорий надежности 2 и 3 предусматривается перерыв в теплоснабжении в летний период времени на срок не более 14 дней, обусловленный проведением гидравлических испытаний  "]
[]
[null,"3.5 Наличие и возможность использования собственных источников тепловой энергии (с указанием их мощностей и режимов работы)"]
[]
[null,"Наименование источника тепловой энергии",null,"Тепловая мощность,\nГкал / час",null,"Режим работы"]
[]
[]
[]
[]
[]
[]
[null,"3.6 Назначение объекта:"]
[]
[null,null,null,null,{"$f":"IF(B111=Списки!B25,Списки!C25,IF(B111=Списки!B26,Списки!C26,IF(B111=Списки!B27,Списки!C27,IF(B111=Списки!B28,Списки!C28,IF(B111=Списки!B29,Списки!C29,IF(B111=Списки!B30,Списки!C30,IF(B111=Списки!B31,Списки!C31,IF(B111=Списки!B32,Списки!C32,IF(B111=Списки!B33,Списки!C33,IF(B111=Списки!B34,Списки!C34,IF(B111=Списки!B35,Списки!C35,IF(B111=Списки!B36,Списки!C36,IF(B111=Списки!B37,Списки!C37,IF(B111=Списки!B38,Списки!C38,IF(B111=Списки!B39,Списки!C39,IF(B111=Списки!B40,Списки!C40,IF(B111=Списки!B41,Списки!C41,IF(B111=Списки!B42,Списки!C42,IF(B111=Списки!B43,Списки!C43,IF(B111=Списки!B44,Списки!C44,IF(B111=Списки!B45,Списки!C45,IF(B111=Списки!B46,Списки!B46,IF(B111=Списки!B47,Списки!C47,IF(B111=Списки!B48,Списки!C48,))))))))))))))))))))))))","v":"-"},null,null,null,null,null,null,"Необходимо выбрать из выпадающего списка"]
[]
[null,"4. Правовые основания пользованием подключаемым объектом или земельным участком, на котором расположен подключаемый объект:"]
[]
[]
[]
[]
[]
[]
[null,"Кдастровый номер:"]
[]
[]
[null,"5. Технические условия (если ранее выдавались)"]
[]
[null,"от","дд.мм.гг",null,null,"№"]
[]
[null,"6. Планируемый срок ввода объекта в эксплуатацию:"]
[]
[null,"мм.гг"]
[]
[null,"7. Информация о границах земельного участка, на котором планируется осуществить строительство / реконструкцию / модернизацию подключаемого объекта"]
[]
[]
[]
[]
[]
[]
[null,"8. Информация о виде разрешенного используемого земельного участка:"]
[]
[]
[]
[]
[]
[null,"9. Информация о предельных параметрах разрешенного строительства / реконструкции / модернизации подключаемого объекта:"]
[]
[]
[]
[]
[]
[]
[]
[null,"10. О готовности проекта договора о подключении к системам теплоснабжения прошу уведомить меня:",null,null,null,null,null,null,null,null,null,"Необходимо выбрать нужный вариант"]
[]
[null,"по телефону:"]
[]
[null,"по электронной почте по адресу:"]
[]
[null,null,"В случае если Заявитель будет недоступен по вышеуказанному контакту, Договор о подключении к системе теплоснабжения ООО \"ТСК Мосэнерго\" будет отправлен почтой по адресу, указанному в Разделе 1 настоящего Запроса"]
[]
[]
[null,null,"Перечень необходимых документов для заключения Договора о подключении к системе теплоснабжения ООО \"ТСК Мосэнерго\":"]
[null,1,"Заверенная копия паспорта"]
[null,2,"Доверенность представителя контрагента на право подписания запроса (в случае подписания запроса лицом, действующим на основании доверенности)."]
[null,3,"Копии правоустанавливающих документов, подтверждающих право собственности или иное законное право заявителя на подключаемый объект или земельный участок, права на которые не зарегистрированы в Едином государственном реестре прав на недвижимое имущество и сделок с ним (в случае если такие права зарегистрированы в указанном реестре, представляются копии свидетельств о государственной регистрации прав на указанный подключаемый объект или земельный участок)."]
[null,4,"Ситуационный план расположения подключаемого объекта с привязкой к территории населенного пункта или элементам территориального деления в схеме теплоснабжения."]
[null,5,"Топографическая карта земельного участка в масштабе 1:500 (для квартальной застройки 1:2000) в электронном виде в формате PDF с указанием всех наземных и подземных коммуникаций и сооружений (не прилагается в случае, если заявителем является физическое лицо, осуществляющее создание (реконструкцию) объекта индивидуального жилищного строительства)."]
[null,6,"Технические параметры, подключаемого объекта:"]
[null,"-","Расчетные максимальные часовые и среднечасовые расходы тепловой энергии и соответствующие им расчетные расходы теплоносителя на технологические нужды, отопление, вентиляцию, кондиционирование воздуха и горячее водоснабжение. "]
[null,"-","Вид и параметры теплоносителя (пар, горячая вода, температурный график, схема подключения «зависимая/независимая»)."]
[null,"-","Режимы теплопотребления для подключаемого объекта (непрерывный, одно-, двухсменный и т.д.)."]
[null,"-","Расположение узла учета тепловой энергии и теплоносителей и контроля их качества (адрес и место установки прибора)"]
[null,"-","Требования к надежности теплоснабжения подключаемого объекта (допустимые перерывы в подаче теплоносителя по продолжительности, периодам года и др.)"]
[null,7,"Наличие и возможность использования собственных источников тепловой энергии (с указанием их мощности и режимов работы)"]
[null,8,"Правовые основания пользования заявителем подключаемым объектом и земельным участком, на котором планируется создание подключаемого объект."]
[null,9,"Номер и дата выдачи технических условий (если они выдавались ранее в соответствии с законодательством о градостроительной деятельности)."]
[null,10,"Планируемые сроки ввода в эксплуатацию подключаемого объекта"]
[null,11,"Информация о границах земельного участка, на котором планируется осуществить строительство"]
[null,12,"Информация о виде разрешенного использования земельного участка"]
[null,13,"Информация о предельных параметрах разрешенного строительства (реконструкции, модернизации) подключаемого объекта (информация, указанная в пп. 10-13, содержится в ГПЗУ)."]
[]
[]
[null,"Заявитель",null,null,null,null,null,null,null,"дд.мм.гг"]
[null,null,"ФИО",null,null,null,"Подпись",null,null,"Дата"]
[]
[null,"М.П."]

{"sheet":"Списки","index":4,"n_rows":73,"n_cols":3,"rows_kept":73,"cut":false,"hidden":true,"merged":[]}
[]
[null,"Схема подключения"]
[]
[null,"Зависимая"]
[null,"Независимая"]
[]
[null,"Округ"]
[]
[null,"ЦАО"]
[null,"САО"]
[null,"СВАО"]
[null,"ВАО"]
[null,"ЮВАО"]
[null,"ЮАО"]
[null,"ЮЗАО"]
[null,"ЗАО"]
[null,"СЗАО"]
[null,"Новомосковский АО"]
[null,"Троицкий АО"]
[null,"Зеленоградский АО"]
[]
[null,"Назначение объекта"]
[]
["№","Категория","Комментарий"]
[null,null,"-"]
[1,"Жилые дома","Жилые дома"]
[2,"Общественные и административно-бытовые помещения","Гостиницы, общежития, пансионаты, д/о, мотели"]
[3,"ДОУ","Детсады, ясли"]
[4,"Объекты спортивного назначения","Стадионы, ФОК, бассейны, спортзалы, спортшколы"]
[5,"Здравоохранение","Больницы, родильные дома, поликлиники, амбулатории, госпитали, морги"]
[6,"Образование","Школы, интернаты, дом ребенка, ПТУ, училища, Вузы, амбулатории"]
[7,"Административно-офисные помещения","МФК, офисы, деловые центры, типографии, почта"]
[8,"Социально-бытовые объекты","Прачечные, химчистки, душевые, бани,парикмахерские, общественные туалеты"]
[9,"Объекты торгового назначения","Магазин, торговые центры, торговые залы, аптеки, вещевой рынок, ларьки, торговые палатки"]
[10,"Досугово-развлекательные учреждения","Дом культуры, интернет-кафе, дискотеки, клубы"]
[11,"Культурные объекты","Театры, кинотеатры, музеи, постоянно действующие выставочные комплексы (центры)"]
[12,"Предприятия общественного питания","Столовые, кафе, рестораны, пиццерии, хлебопекарня"]
[13,"Объекты производственного назначения","Заводы, цеха, станции, тепловые пункты, депо, гаражи,ремонтно-механические мастерские, склады, АЗС,СТО"]
[14,"Объекты городской инфраструктуры","Вокзалы, парки, оранжереи, теплицы, сельхоз.рынки"]
[15,"Транспортная инфраструктура","Дороги, эстакады, мосты, тоннели, путепроводы, жел.дор.пути"]
[16,"Религиозные сооружения","Храм, церковь, синагога, мечеть, монастырь, часовня, кирха"]
[17,"Объекты защиты населения","Полиция, мчс, военные, ГИБДД, вневедомственная охрана, ЧОПы, военная полиция"]
[18,"Объекты складского назначения","Склады, навесы, ангары, сараи"]
[19,"Нежилые помещения","Объекты заявлены как нежилые помещение без уточнения дальнейшего назначения"]
[20,"Комплексная застройка","Большая застройка, куда попадают  объекты из разных категорий"]
[21,"Временные объекты","бытовки, строительные городки, объекты механизации"]
[22,"Объекты незавершенного строительства","незавершенные объекты для проведения отделочных и пуско-наладочных работ"]
[23,"Прочее","Все, что не попало в категории выше"]
[]
[null,"Отделения сбыта"]
[]
[null,"Отделение сбыта №1 - г. Москва, ул. Складочная, д. 1А, стр. 1"]
[null,"Отделение сбыта №2 - г. Москва, ул. Бибиревская, д. 8 кор. 1"]
[null,"Отделение сбыта №3 - г. Москва, ул. Шарикоподшипниковская, д.1"]
[null,"Отделение сбыта №4 - г.Москва, пр. Андропова, д. 36 к. 2"]
[null,"Отделение сбыта №5 - г.Москва, ул.Героев Панфиловцев, д.10, к. 1"]
[null,"Отделение сбыта №6 - г.Зеленоград, корп. 1111А"]
[null,"Отделение сбыта №7 - г.Московский, 3 мкр., д.2а"]
[]
[]
[null,"Режим теплопотрбления"]
[]
[null,"непрерывный"]
[null,"односменный"]
[null,"двухсменный"]
[null,"сезонный"]
[]
[]
[null,"Требования к надежности"]
[]
[null,"1 категория - потребители, не допускающие перерывов в подаче расчетного количества теплоты и снижения температуры воздуха в помещениях ниже расчетных"]
[null,"2 категория - потребители, допускающие снижение температуры в отапливаемых помещениях на период ликвидации аварии, но не более 54 ч: \n-        жилых и общественных зданий до 12 °С; \n-        промышленных зданий до 8 °С  "]
[null,"3 категория - остальные потребители"]